bitfinex/quotes_SOLUSD_20250915
["timestamp","ask_amount","ask_price","bid_price","bid_amount"]
[1757922380442,0.42041537,238.52,238.44,0.68]
[1757922380615,0.42041537,238.55,238.44,0.68]
[1757922381028,14.29559401,238.54,238.44,36.92]
[1757922381230,13.59559401,238.52,238.44,36.92]
[1757922381448,13.59559401,238.52,238.43,4.19410309]
[1757922381449,0.42041537,238.51,238.43,14.67936081]
[1757922381620,0.42041537,238.51,238.43,51.59936081]
[1757922382121,0.42041537,238.51,238.43,4.19410309]
[1757922382323,14.29559401,238.5,238.43,4.19410309]
[1757922382523,13.59559401,238.48,238.43,4.19410309]
[1757922382723,0.42041537,238.47,238.39,41.11477913]
[1757922382927,0.42041537,238.47,238.39,4.19477913]
[1757922382928,1.12041537,238.47,238.39,4.19477913]
[1757922383547,13.59559401,238.44,238.32,4.87603893]
[1757922383838,13.59559401,238.42,238.32,4.19603893]
[1757922384040,13.59559401,238.4,238.33,0.68]
[1757922384223,26.7,238.43,238.33,0.68]
[1757922384429,14.01600938,238.42,238.33,0.68]
[1757922384646,26.0,238.39,238.33,0.68]
[1757922384826,26.0,238.39,238.32,4.19603893]
[1757922385026,0.42041537,238.38,238.32,4.19603893]
[1757922385229,26.0,238.39,238.32,14.68613627]
[1757922385827,13.59559401,238.4,238.32,14.68613627]
[1757922386518,1.12041537,238.41,238.33,0.68]
[1757922386747,14.29559401,238.44,238.33,0.68]
[1757922386949,0.42041537,238.43,238.33,0.68]
[1757922387336,0.42041537,238.43,238.32,4.19603893]
[1757922387337,39.59559401,238.41,238.32,4.19603893]
[1757922387540,39.59559401,238.41,238.26,21.04467269]
[1757922387541,13.59559401,238.39,238.27,14.68921811]
[1757922387850,0.42041537,238.39,238.28,0.68]
[1757922388551,14.01600938,238.39,238.28,0.68]
[1757922389453,14.29559401,238.38,238.27,51.58921811]
[1757922389650,1.12041537,238.37,238.27,51.56921811]
[1757922389856,26.0,238.35,238.27,51.56921811]
[1757922390029,0.42041537,238.34,238.27,51.56921811]
[1757922390424,0.42041537,238.34,238.26,0.06]
[1757922390425,14.29559401,238.33,238.26,0.06]
[1757922390624,13.59559401,238.31,238.26,0.06]
[1757922390862,0.42041537,238.3,238.26,0.06]
[1757922391150,0.42041537,238.3,238.26,4.25707201]
[1757922391332,0.42041537,238.33,238.27,0.68]
[1757922391653,26.7,238.34,238.26,14.74981103]
[1757922391842,26.7,238.34,238.26,4.25707201]
[1757922391843,0.42041537,238.33,238.26,4.25707201]
[1757922392351,13.59559401,238.32,238.26,4.25707201]
[1757922392557,1.12041537,238.31,238.26,0.06]
[1757922392924,0.42041537,238.31,238.26,4.25708405]
[1757922393231,0.7,238.3,238.26,4.25708405]
[1757922393442,0.42041537,238.31,238.26,4.25708405]
[1757922393757,1.11041537,238.31,238.26,4.25708405]
[1757922394055,0.42041537,238.31,238.26,4.25708405]
[1757922394245,0.69,238.31,238.26,4.25708405]
[1757922394642,0.42041537,238.32,238.26,4.90708405]
[1757922394839,0.42041537,238.32,238.26,4.25708405]
[1757922395043,26.42041537,238.32,238.26,4.25708405]
[1757922395259,26.0,238.31,238.26,4.25708405]
[1757922395437,0.42041537,238.3,238.26,4.25708405]
[1757922395635,26.0,238.31,238.26,4.25708405]
[1757922395834,0.42041537,238.3,238.26,4.25708405]
[1757922396030,0.42041537,238.3,238.26,0.06]
[1757922396570,13.59559401,238.28,238.26,0.06]
[1757922396727,14.70600938,238.27,238.26,0.06]
[1757922397536,18.90292884,238.27,238.26,0.06]
[1757922398461,14.70600938,238.27,238.26,0.06]
[1757922399130,1.11041537,238.27,238.26,0.06]
[1757922399539,0.42041537,238.27,238.26,0.06]
[1757922399757,0.42041537,238.28,238.26,0.06]
[1757922399958,13.59559401,238.31,238.26,4.25698446]
[1757922400158,13.59559401,238.29,238.26,4.25698446]
[1757922400362,0.42041537,238.33,238.27,0.71]
[1757922400829,13.59559401,238.32,238.26,4.25698446]
[1757922401036,0.42041537,238.31,238.26,4.25698446]
[1757922401247,0.42041537,238.31,238.26,30.25698446]
[1757922401466,13.59559401,238.33,238.26,30.96698446]
[1757922401633,13.59559401,238.31,238.26,4.25698446]
[1757922401835,0.42041537,238.3,238.26,4.25698446]
[1757922402061,14.29559401,238.29,238.26,0.06]
[1757922402229,0.42041537,238.28,238.26,0.06]
[1757922402662,0.42041537,238.31,238.26,4.25699179]
[1757922402846,13.59559401,238.3,238.26,4.25699179]
[1757922403055,13.59559401,238.3,238.26,4.96699179]
[1757922403056,0.42041537,238.29,238.26,4.96699179]
[1757922403237,0.42041537,238.29,238.26,15.45973081]
[1757922403563,13.59559401,238.34,238.26,15.45973081]
[1757922403564,0.7,238.32,238.26,4.25699179]
[1757922403863,13.59559401,238.3,238.26,4.25699179]
[1757922404158,0.42041537,238.29,238.26,4.25699179]
[1757922404341,0.42041537,238.29,238.26,14.74973081]
[1757922404550,0.42041537,238.32,238.27,0.71]
[1757922404843,0.42041537,238.32,238.28,0.71]
[1757922405162,0.42041537,238.32,238.29,0.71]
[1757922405369,0.42041537,238.36,238.3,0.71]
[1757922405665,13.59559401,238.35,238.3,0.71]
[1757922405832,0.42041537,238.34,238.31,4.19621501]
[1757922406034,13.59559401,238.37,238.31,14.68675254]
[1757922406345,0.42041537,238.36,238.31,14.68675254]
[1757922406853,0.42041537,238.36,238.26,0.06]
[1757922406854,14.29559401,238.35,238.26,0.06]
[1757922407174,13.59559401,238.33,238.26,30.2569677]
[1757922407348,13.59559401,238.33,238.26,41.45970672]
[1757922407554,0.42041537,238.32,238.26,41.45970672]
[1757922407755,0.42041537,238.32,238.26,4.2569677]
[1757922408079,0.42041537,238.32,238.26,15.45970672]
[1757922408243,13.59559401,238.37,238.27,0.71]
[1757922408450,13.59559401,238.35,238.27,0.71]
[1757922408674,0.42041537,238.34,238.27,0.71]
[1757922409565,0.42041537,238.34,238.28,0.06]
[1757922409767,0.42041537,238.34,238.29,4.1965672]
[1757922409966,0.42041537,238.34,238.29,4.9065672]
[1757922410268,13.59559401,238.33,238.29,4.1965672]
[1757922410473,0.42041537,238.32,238.29,4.1965672]
[1757922410844,13.59559401,238.33,238.29,4.1965672]
[1757922411252,1.12041537,238.36,238.29,4.9065672]
[1757922411451,13.59559401,238.35,238.29,4.9065672]
[1757922411680,0.42041537,238.34,238.29,15.39798522]
[1757922411849,0.42041537,238.38,238.3,0.71]
[1757922412044,0.42041537,238.38,238.32,26.0]
[1757922412244,13.59559401,238.41,238.33,0.71]
[1757922412472,13.59559401,238.39,238.33,0.71]
[1757922412693,13.59559401,238.42,238.34,26.0]
[1757922412968,0.42041537,238.41,238.34,26.0]
[1757922413173,26.7,238.45,238.34,26.0]
[1757922413174,14.01600938,238.44,238.35,0.71]
[1757922413547,12.61750048,238.48,238.35,0.71]
[1757922413548,13.59559401,238.46,238.35,0.71]
[1757922413746,0.42041537,238.45,238.35,37.47]
[1757922413961,13.59559401,238.46,238.39,14.68182389]
[1757922414149,0.42041537,238.47,238.42,26.0]
[1757922414457,12.61750048,238.48,238.42,62.76]
[1757922414778,12.61750048,238.48,238.43,0.71]
[1757922414968,12.61750048,238.48,238.43,37.47]
[1757922415139,12.61750048,238.48,238.44,0.71]
[1757922415346,12.61750048,238.48,238.45,0.71]
[1757922415546,12.61750048,238.48,238.46,0.71]
[1757922415763,0.03,238.5,238.44,36.74]
[1757922416386,0.03,238.5,238.45,0.71]
[1757922416753,0.03,238.5,238.44,36.74]
[1757922416951,0.03,238.5,238.44,37.45]
[1757922417263,0.03,238.5,238.45,0.71]
[1757922417579,0.03,238.5,238.46,62.74]
[1757922417763,0.03,238.5,238.46,63.45]
[1757922418077,0.03,238.5,238.47,4.90339958]
[1757922418474,0.03,238.5,238.48,37.43]
[1757922418945,0.03,238.5,238.47,14.67689855]
[1757922418946,0.03,238.5,238.49,26.71]
[1757922419141,0.03,238.5,238.46,38.65518238]
[1757922419142,0.03,238.5,238.46,12.65518238]
[1757922419346,0.03,238.5,238.43,0.71]
[1757922419692,13.59559401,238.49,238.42,27.32]
[1757922419976,13.59559401,238.49,238.39,0.71]
[1757922419977,13.59559401,238.47,238.37,40.91510917]
[1757922420145,0.03,238.5,238.37,4.19510917]
[1757922420146,1.11041537,238.46,238.37,4.19510917]
[1757922420353,13.59559401,238.45,238.37,4.19510917]
[1757922420676,13.59559401,238.43,238.35,41.6054859]
[1757922420891,0.42041537,238.42,238.35,37.41]
[1757922421173,13.59559401,238.41,238.35,37.41]
[1757922421374,0.42041537,238.4,238.35,4.90549276]
[1757922421674,0.42041537,238.4,238.35,4.19549276]
[1757922422252,0.42041537,238.4,238.35,4.90549276]
[1757922422452,0.42041537,238.4,238.33,66.89578461]
[1757922422670,13.59559401,238.39,238.33,4.19578461]
[1757922422871,1.11041537,238.38,238.33,4.19578461]
[1757922423161,0.42041537,238.38,238.33,4.19578461]
[1757922423378,0.69,238.37,238.33,4.19578461]
[1757922423580,0.42041537,238.36,238.31,4.19617701]
[1757922423764,0.42041537,238.36,238.29,4.19642288]
[1757922423765,13.59559401,238.35,238.29,4.19642288]
[1757922424088,0.42041537,238.34,238.29,4.19642288]
[1757922424259,0.69,238.34,238.29,4.19642288]
[1757922424459,13.59559401,238.32,238.28,0.06]
[1757922424772,13.59559401,238.3,238.28,0.06]
[1757922424975,1.11041537,238.29,238.28,0.06]
[1757922426284,14.70600938,238.29,238.28,0.06]
[1757922427380,40.70600938,238.29,238.28,0.06]
[1757922427788,14.70600938,238.29,238.28,0.06]
[1757922428488,40.01600938,238.29,238.28,0.06]
[1757922428694,40.70600938,238.29,238.28,0.06]
[1757922430182,40.01600938,238.29,238.28,0.06]
[1757922430395,14.01600938,238.29,238.28,0.06]
[1757922430864,14.73600938,238.29,238.28,0.06]
[1757922431463,14.01600938,238.29,238.28,0.06]
[1757922431970,20.0,238.39,238.28,0.06]
[1757922431971,13.59559401,238.31,238.28,4.96657006]
[1757922432184,13.59559401,238.34,238.28,4.96657006]
[1757922432371,13.59559401,238.32,238.28,4.96657006]
[1757922432589,0.42041537,238.31,238.29,0.71]
[1757922432772,14.01600938,238.36,238.3,0.71]
[1757922433272,18.21135716,238.36,238.28,0.06]
[1757922433676,18.21135716,238.36,238.28,4.25671955]
[1757922433677,14.01600938,238.36,238.28,4.25671955]
[1757922433889,13.59559401,238.34,238.28,0.06]
[1757922434069,13.59559401,238.3,238.28,0.06]
[1757922434271,14.73600938,238.29,238.28,0.06]
[1757922435101,14.01600938,238.29,238.28,0.06]
[1757922435467,14.73600938,238.29,238.28,0.06]
[1757922437897,14.01600938,238.29,238.28,0.06]
[1757922438295,0.42041537,238.29,238.28,0.77]
[1757922438485,13.59559401,238.33,238.28,0.06]
[1757922438686,13.59559401,238.31,238.28,4.25666957]
[1757922438871,0.42041537,238.3,238.28,4.25666957]
[1757922439072,0.42041537,238.3,238.29,0.71]
[1757922439383,0.42041537,238.3,238.28,4.96666957]
[1757922439980,0.42041537,238.3,238.28,4.25666957]
[1757922440303,0.42041537,238.3,238.29,0.71]
[1757922440518,0.42041537,238.3,238.28,4.25666957]
[1757922441875,0.42041537,238.3,238.28,30.25666957]
[1757922442076,13.59559401,238.31,238.28,30.25666957]
[1757922442284,0.42041537,238.3,238.28,4.25666957]
[1757922442702,13.59559401,238.29,238.28,0.06]
[1757922442878,14.31559401,238.29,238.28,0.06]
[1757922443212,39.59559401,238.27,238.26,0.06]
[1757922443508,13.59559401,238.26,238.25,0.06]
[1757922443683,14.31559401,238.26,238.25,0.06]
[1757922444099,50.89559401,238.26,238.25,0.06]
[1757922444292,14.31559401,238.26,238.25,0.06]
[1757922444609,50.89559401,238.26,238.25,0.06]
[1757922444809,39.59559401,238.24,238.23,0.06]
[1757922445017,13.59559401,238.22,238.09,4.20000009]
[1757922445187,13.59559401,238.18,238.06,0.71]
[1757922445388,13.59559401,238.18,238.04,10.50226475]
[1757922445389,13.59559401,238.16,238.1,26.0]
[1757922445589,13.59559401,238.16,238.11,0.71]
[1757922445590,0.42041537,238.15,238.11,0.71]
[1757922445923,0.42041537,238.21,238.12,26.71]
[1757922446094,13.59559401,238.19,238.12,26.71]
[1757922446289,13.59559401,238.17,238.13,0.71]
[1757922446515,0.42041537,238.16,238.14,0.71]
[1757922446694,0.42041537,238.16,238.15,4.90903422]
[1757922447598,0.42041537,238.16,238.12,0.71]
[1757922447912,13.59559401,238.18,238.11,14.69896698]
[1757922448117,0.42041537,238.17,238.12,0.71]
[1757922448289,13.59559401,238.21,238.13,0.71]
[1757922448491,0.42041537,238.2,238.13,0.71]
[1757922448797,13.59559401,238.19,238.14,14.69723691]
[1757922449108,0.42041537,238.18,238.15,0.71]
[1757922449287,14.01600938,238.22,238.16,0.71]
[1757922449913,0.42041537,238.24,238.17,26.0]
[1757922450116,0.42041537,238.24,238.18,0.71]
[1757922450993,0.42041537,238.25,238.18,0.71]
[1757922451491,13.59559401,238.24,238.18,4.19849215]
[1757922451692,0.42041537,238.23,238.18,4.19849215]
[1757922452926,0.42041537,238.23,238.15,14.69644575]
[1757922452927,13.59559401,238.22,238.15,14.69644575]
[1757922453096,13.59559401,238.2,238.15,14.69644575]
[1757922453298,0.42041537,238.19,238.16,0.71]
[1757922453718,14.01600938,238.19,238.18,0.06]
[1757922456819,14.73600938,238.19,238.18,0.06]
[1757922457025,51.25600938,238.19,238.18,0.06]
[1757922457322,14.01600938,238.19,238.18,0.06]
[1757922458127,14.01600938,238.19,238.18,0.77]
[1757922458702,13.59559401,238.23,238.19,4.19832906]
[1757922458903,13.59559401,238.21,238.2,0.69]
[1757922459120,13.59559401,238.21,238.19,14.69415172]
[1757922459301,0.42041537,238.2,238.19,14.69415172]
[1757922459506,0.42041537,238.2,238.19,4.19832906]
[1757922460216,0.42041537,238.2,238.18,0.06]
[1757922460427,50.77559401,238.19,238.18,0.06]
[1757922460940,54.97392307,238.19,238.18,0.06]
[1757922461994,14.27559401,238.19,238.18,0.06]
[1757922462329,50.75559401,238.19,238.18,0.06]
[1757922462707,14.27559401,238.19,238.18,0.06]
[1757922462916,50.75559401,238.19,238.18,0.06]
[1757922465740,50.73559401,238.19,238.18,0.06]
[1757922466032,39.59559401,238.19,238.18,0.06]
[1757922466198,13.59559401,238.19,238.18,0.06]
[1757922466399,50.05559401,238.19,238.18,0.06]
[1757922466633,50.47600938,238.19,238.18,0.06]
[1757922467211,51.15600938,238.19,238.18,0.06]
[1757922467725,55.35433844,238.19,238.18,0.06]
[1757922468133,54.67433844,238.19,238.18,0.06]
[1757922468318,50.47600938,238.19,238.18,0.06]
[1757922468637,51.15600938,238.19,238.18,0.06]
[1757922469134,50.47600938,238.19,238.18,0.06]
[1757922469342,14.01600938,238.19,238.18,0.06]
[1757922469542,50.45600938,238.19,238.18,0.06]
[1757922469715,51.13600938,238.19,238.18,0.06]
[1757922469912,50.45600938,238.19,238.18,0.06]
[1757922470636,14.01600938,238.19,238.18,0.06]
[1757922471011,13.59559401,238.19,238.18,0.06]
[1757922471540,18.89433844,238.19,238.18,0.06]
[1757922471906,44.89433844,238.19,238.18,0.06]
[1757922472412,44.21433844,238.19,238.18,0.06]
[1757922473236,40.01600938,238.19,238.18,0.06]
[1757922473460,77.11600938,238.19,238.18,0.06]
[1757922473627,81.31433844,238.19,238.18,0.06]
[1757922474118,80.63433844,238.19,238.18,0.06]
[1757922475142,81.31433844,238.19,238.18,0.06]
[1757922475746,55.31433844,238.19,238.18,1e-08]
[1757922475941,64.51399162,238.19,238.18,1e-08]
[1757922476140,64.51395844,238.19,238.18,1e-08]
[1757922476354,33.25699957,238.19,238.18,1e-08]
[1757922476546,66.91621857,238.19,238.18,1e-08]
[1757922476953,69.656403,238.19,238.18,1e-08]
[1757922478857,66.91621857,238.19,238.18,1e-08]
[1757922479045,61.07317744,238.19,238.18,1e-08]
[1757922479230,24.67317744,238.19,238.18,1e-08]
[1757922479435,54.59433844,238.19,238.18,1e-08]
[1757922479653,80.59433844,238.19,238.18,1e-08]
[1757922480436,44.21433844,238.19,238.18,1e-08]
[1757922480772,54.59433844,238.19,238.18,1e-08]
[1757922481265,55.28433844,238.19,238.18,1e-08]
[1757922481763,58.02449199,238.19,238.18,1e-08]
[1757922482060,78.02449199,238.19,238.18,1e-08]
[1757922482279,78.02449199,238.19,238.15,0.06]
[1757922482468,59.59559401,238.15,238.13,0.06]
[1757922482667,50.37600938,238.14,238.13,0.06]
[1757922482849,51.06600938,238.14,238.13,0.06]
[1757922483351,50.37600938,238.14,238.13,0.06]
[1757922483551,51.06600938,238.14,238.13,0.06]
[1757922484071,50.37600938,238.14,238.13,0.06]
[1757922484272,50.37600938,238.14,238.13,0.77]
[1757922484973,14.01600938,238.14,238.13,0.77]
[1757922485356,50.37600938,238.14,238.13,0.77]
[1757922486876,54.57521992,238.14,238.13,0.06]
[1757922487272,55.26521992,238.14,238.13,0.06]
[1757922487573,55.26521992,238.14,238.02,0.2]
[1757922487574,39.59559401,238.1,238.02,0.91]
[1757922487745,39.59559401,238.1,238.02,0.2]
[1757922487746,13.59559401,238.08,238.02,0.2]
[1757922488074,39.59559401,238.06,238.02,0.2]
[1757922488291,13.59559401,238.04,238.02,0.2]
[1757922488575,26.0,238.06,238.02,0.2]
[1757922488576,14.01600938,238.03,238.02,0.2]
[1757922488973,14.01600938,238.03,238.02,4.40132761]
[1757922489151,14.01600938,238.03,238.02,5.08132761]
[1757922489548,0.42041537,238.03,238.02,5.08132761]
[1757922489746,0.42041537,238.04,238.02,5.08132761]
[1757922489979,0.42041537,238.04,238.03,0.68]
[1757922490363,0.42041537,238.04,238.03,4.88115111]
[1757922490595,14.01600938,238.04,238.03,0.68]
[1757922490756,14.01600938,238.04,238.02,0.2]
[1757922490757,13.59559401,238.03,238.02,0.2]
[1757922490956,14.01600938,238.03,238.02,0.2]
[1757922491262,14.01600938,238.03,238.02,0.88]
[1757922492160,14.01600938,238.03,238.02,0.2]
[1757922492358,18.21716049,238.03,238.02,0.2]
[1757922492554,18.91716049,238.03,238.02,0.2]
[1757922493095,18.58270276,238.03,238.02,0.2]
[1757922494776,49.98155165,238.03,238.02,0.2]
[1757922494974,13.68155165,238.03,238.02,0.2]
[1757922495180,75.98155165,238.03,238.02,0.88]
[1757922495758,39.68155165,238.03,238.02,0.88]
[1757922495981,13.68155165,238.03,238.02,0.88]
[1757922496174,13.59559401,238.04,238.02,5.08123159]
[1757922496481,0.42041537,238.03,238.02,0.2]
[1757922496957,0.42041537,238.03,238.02,0.88]
[1757922497382,13.59559401,238.05,238.03,4.20115111]
[1757922497564,14.01600938,238.04,238.03,4.20115111]
[1757922498167,14.01600938,238.1,238.03,15.38402889]
[1757922498482,14.01600938,238.1,238.05,4.20079815]
[1757922498783,14.01600938,238.1,238.06,0.68]
[1757922498983,0.7,238.09,238.02,0.2]
[1757922499156,13.59559401,238.06,238.02,0.2]
[1757922499356,0.42041537,238.05,238.02,0.2]
[1757922499877,13.59559401,238.04,238.02,0.2]
[1757922500083,0.42041537,238.03,238.02,0.2]
[1757922500286,0.42041537,238.03,238.02,0.88]
[1757922500461,14.01600938,238.03,238.02,0.88]
[1757922500655,14.01600938,238.03,238.02,0.2]
[1757922501478,14.01600938,238.03,238.02,0.88]
[1757922501680,14.01600938,238.03,238.02,0.2]
[1757922503161,50.25600938,238.03,238.02,0.2]
[1757922503361,55.15716049,238.03,238.02,0.2]
[1757922504765,55.15716049,238.03,238.02,1e-08]
[1757922504965,57.90147299,238.03,238.02,1e-08]
[1757922505579,64.36031199,238.03,238.02,1e-08]
[1757922507205,64.36031199,238.03,237.94,0.2]
[1757922507206,39.59559401,237.95,237.94,0.2]
[1757922507367,75.81559401,237.95,237.94,0.2]
[1757922507566,76.51559401,237.95,237.94,0.2]
[1757922508898,80.71815757,237.95,237.94,1e-08]
[1757922509078,90.3363161,237.95,237.94,1e-08]
[1757922509393,89.91590073,237.95,237.94,1e-08]
[1757922509581,87.17699657,237.95,237.94,1e-08]
[1757922510099,39.59559401,237.91,237.79,0.68]
[1757922510301,56.67484838,237.9,237.79,0.68]
[1757922510599,57.37484838,237.9,237.79,0.68]
[1757922510764,25.3782952,237.9,237.89,1e-08]
[1757922510967,61.5782952,237.9,237.89,1e-08]
[1757922511891,61.5782952,237.9,237.79,0.68]
[1757922511892,39.59559401,237.88,237.79,0.68]
[1757922512097,76.21600938,237.88,237.79,0.68]
[1757922512394,76.91600938,237.88,237.79,0.68]
[1757922512804,81.11980961,237.88,237.79,0.68]
[1757922513166,18.21980961,237.88,237.66,24.79429941]
[1757922513384,54.41980961,237.88,237.81,0.68]
[1757922513966,44.21980961,237.88,237.81,0.68]
[1757922514167,80.41980961,237.88,237.84,0.68]
[1757922514477,40.01600938,237.88,237.87,0.74]
[1757922514677,76.19600938,237.88,237.87,0.74]
[1757922514996,14.01600938,237.88,237.87,0.74]
[1757922515367,50.19600938,237.88,237.87,0.06]
[1757922516500,50.89600938,237.88,237.87,0.06]
[1757922516668,13.59559401,237.84,237.78,0.2]
[1757922516867,26.0,237.85,237.78,0.2]
[1757922516868,13.59559401,237.8,237.78,0.2]
[1757922517069,50.19600938,237.79,237.78,0.2]
[1757922518684,50.17600938,237.79,237.78,0.88]
[1757922519995,50.17600938,237.79,237.78,0.2]
[1757922520186,50.17600938,237.79,237.78,0.89]
[1757922521698,14.01600938,237.79,237.78,0.89]
[1757922523005,14.01600938,237.79,237.78,0.2]
[1757922523207,39.59559401,237.75,237.71,0.69]
[1757922523384,13.59559401,237.73,237.7,0.06]
[1757922523579,36.56041537,237.72,237.7,0.06]
[1757922523885,50.15600938,237.72,237.71,0.69]
[1757922524210,10.51136281,237.84,237.71,0.69]
[1757922524511,13.59559401,237.77,237.71,0.69]
[1757922524806,14.71639405,237.83,237.71,0.69]
[1757922524807,26.0,237.82,237.71,0.69]
[1757922525015,49.73559401,237.81,237.71,0.69]
[1757922525391,49.73559401,237.81,237.72,14.72320376]
[1757922525587,53.94064089,237.81,237.73,0.69]
[1757922525817,36.14,237.8,237.73,0.69]
[1757922526116,13.59559401,237.78,237.73,0.69]
[1757922527215,13.59559401,237.83,237.73,0.69]
[1757922527443,13.59559401,237.81,237.74,14.72196516]
[1757922527723,36.12,237.84,237.75,0.69]
[1757922528233,13.59559401,237.84,237.75,0.69]
[1757922529616,13.59559401,237.82,237.71,10.51669332]
[1757922529920,49.71559401,237.82,237.73,4.20630221]
[1757922530121,49.71559401,237.82,237.74,0.69]
[1757922531205,49.71559401,237.82,237.75,4.20609884]
[1757922531419,13.59559401,237.84,237.75,4.20609884]
[1757922531633,13.59559401,237.84,237.74,0.69]
[1757922531634,13.59559401,237.81,237.72,4.20648565]
[1757922531940,13.59559401,237.79,237.7,4.95683864]
[1757922532721,14.28559401,237.78,237.7,4.95683864]
[1757922532920,50.36559401,237.78,237.7,4.95683864]
[1757922533100,0.69,237.84,237.71,0.69]
[1757922533295,75.67559401,237.83,237.71,0.69]
[1757922533528,13.59559401,237.81,237.71,0.69]
[1757922533719,13.59559401,237.79,237.71,0.69]
[1757922533932,13.59559401,237.79,237.7,14.78429762]
[1757922533933,13.59559401,237.77,237.7,0.06]
[1757922534293,13.59559401,237.75,237.7,0.06]
[1757922534494,13.59559401,237.73,237.7,0.06]
[1757922534930,13.59559401,237.71,237.7,0.06]
[1757922535503,0.69,237.76,237.7,4.26698359]
[1757922535855,13.59559401,237.74,237.7,4.26698359]
[1757922536143,7.148839,237.79,237.7,4.95698359]
[1757922536144,36.06,237.76,237.7,4.95698359]
[1757922536435,13.59559401,237.78,237.7,14.78444257]
[1757922536609,13.59559401,237.75,237.7,14.78444257]
[1757922536937,13.59559401,237.75,237.7,15.47444257]
[1757922537116,13.59559401,237.75,237.72,4.20662964]
[1757922537519,13.59559401,237.78,237.73,0.67]
[1757922537814,13.59559401,237.78,237.72,14.72320376]
[1757922539438,13.59559401,237.78,237.72,10.51657412]
[1757922540115,13.59559401,237.83,237.73,0.67]
[1757922540629,36.04,237.87,237.75,26.0]
[1757922540815,13.59559401,237.86,237.76,0.67]
[1757922541019,13.62559401,237.89,237.76,0.67]
[1757922541218,29.92,237.88,237.77,14.72010765]
[1757922541425,13.62559401,237.89,237.77,14.72010765]
[1757922541426,0.03,237.89,237.8,26.0]
[1757922541613,0.03,237.89,237.81,0.67]
[1757922542714,13.59559401,237.87,237.77,4.20574504]
[1757922542929,0.7,237.86,237.77,14.72010765]
[1757922543232,13.59559401,237.85,237.79,14.71886958]
[1757922543608,36.02,237.88,237.79,14.71886958]
[1757922543808,13.59559401,237.86,237.72,10.51632474]
[1757922544028,13.59559401,237.84,237.73,0.67]
[1757922544229,13.59559401,237.84,237.7,0.06]
[1757922544230,13.59559401,237.82,237.7,0.06]
[1757922544609,13.59559401,237.8,237.7,0.06]
[1757922545112,13.59559401,237.78,237.7,4.26685721]
[1757922545441,13.59559401,237.76,237.7,4.26685721]
[1757922545741,13.59559401,237.76,237.72,0.06]
[1757922546535,13.59559401,237.74,237.72,0.06]
[1757922546741,13.59559401,237.78,237.72,0.06]
[1757922547231,0.7,237.74,237.72,0.06]
[1757922547619,14.29559401,237.73,237.72,0.06]
[1757922550621,50.27559401,237.73,237.72,0.06]
[1757922550818,13.59559401,237.73,237.72,0.06]
[1757922551020,50.25559401,237.73,237.72,0.06]
[1757922554938,39.59559401,237.71,237.7,0.06]
[1757922555342,76.23559401,237.71,237.7,0.06]
[1757922555634,87.85747414,237.71,237.7,0.06]
[1757922555837,17.8025776,237.7,237.69,0.06]
[1757922556032,25.71023275,237.7,237.69,0.06]
[1757922556343,32.84907175,237.7,237.69,1e-08]
[1757922557038,68.78907175,237.7,237.69,1e-08]
[1757922557942,32.84907175,237.7,237.69,1e-08]
[1757922558139,68.78907175,237.7,237.69,1e-08]
[1757922558336,32.84907175,237.7,237.69,1e-08]
[1757922558538,30.10445773,237.7,237.69,1e-08]
[1757922558724,66.04445773,237.7,237.69,1e-08]
[1757922559046,56.10445773,237.7,237.69,1e-08]
[1757922559219,49.53559401,237.7,237.69,1e-08]
[1757922560220,50.21559401,237.7,237.69,1e-08]
[1757922560455,49.53559401,237.7,237.69,1e-08]
[1757922560628,50.21559401,237.7,237.69,1e-08]
[1757922561955,49.53559401,237.7,237.69,1e-08]
[1757922563052,49.51559401,237.7,237.69,1e-08]
[1757922563567,13.59559401,237.7,237.69,1e-08]
[1757922564131,14.27559401,237.7,237.69,1e-08]
[1757922565037,14.30559401,237.7,237.69,1e-08]